bitfinex/quotes_BTCUSD_20251015
["timestamp","ask_amount","ask_price","bid_price","bid_amount"]
[1760560697318,0.00058738,111180.0,111170.0,0.17990465]
[1760560697558,0.00058738,111180.0,111170.0,0.74369481]
[1760560697782,1e-08,111180.0,111170.0,0.77987709]
[1760560698106,1e-08,111180.0,111170.0,0.89415709]
[1760560698564,1e-08,111180.0,111170.0,0.30577705]
[1760560698921,0.10000001,111180.0,111170.0,0.30577705]
[1760560699148,0.10000001,111180.0,111170.0,0.17990465]
[1760560699347,0.11936965,111180.0,111170.0,0.17990465]
[1760560699545,0.1635817,111180.0,111170.0,0.17990465]
[1760560699864,0.1635817,111180.0,111170.0,0.18090465]
[1760560700049,0.1635817,111180.0,111170.0,0.18190465]
[1760560700313,0.1635817,111180.0,111170.0,0.17990465]
[1760560700661,0.1645817,111180.0,111170.0,0.17990465]
[1760560701748,0.63868174,111180.0,111170.0,0.17990465]
[1760560701952,0.17990465,111170.0,111160.0,0.17990551]
[1760560702103,0.92758638,111170.0,111160.0,0.17990551]
[1760560702314,0.27358169,111170.0,111160.0,0.17990551]
[1760560703185,0.24936964,111170.0,111160.0,0.17990551]
[1760560703628,0.27358169,111170.0,111160.0,0.17990551]
[1760560704289,0.24936964,111170.0,111160.0,0.17990551]
[1760560705115,0.23,111170.0,111160.0,0.17990551]
[1760560706172,0.231,111170.0,111160.0,0.17990551]
[1760560707629,0.001,111170.0,111160.0,0.17990551]
[1760560707879,0.001,111170.0,111160.0,0.30577791]
[1760560708994,1e-08,111180.0,111170.0,0.17990465]
[1760560709371,0.10000001,111180.0,111170.0,0.17990465]
[1760560709570,0.11000001,111180.0,111170.0,0.17990465]
[1760560711144,0.55718509,111190.0,111180.0,0.17988846]
[1760560711358,5.67718509,111190.0,111180.0,0.17988846]
[1760560711584,5.47794224,111190.0,111180.0,0.17988846]
[1760560712051,5.12,111190.0,111180.0,0.17988846]
[1760560713533,0.121,111190.0,111180.0,0.17988846]
[1760560715167,0.12,111190.0,111180.0,0.17988846]
[1760560716421,0.121,111190.0,111180.0,0.17988846]
[1760560716926,0.12158731,111190.0,111180.0,0.17988846]
[1760560718508,5.0,111200.0,111190.0,0.17985976]
[1760560718762,5.21985611,111200.0,111190.0,0.17985976]
[1760560719167,5.69395615,111200.0,111190.0,0.17985976]
[1760560719340,5.04058723,111200.0,111190.0,0.17985976]
[1760560720085,5.04158723,111200.0,111190.0,0.17985976]
[1760560723745,5.51568727,111200.0,111190.0,0.17985976]
[1760560723949,5.69554338,111200.0,111180.0,0.17988846]
[1760560724149,5.69554338,111200.0,111150.0,0.00899685]
[1760560724150,0.1798901,111180.0,111150.0,0.00899685]
[1760560724360,0.47410004,111170.0,111160.0,0.25166587]
[1760560724560,5.72400469,111170.0,111160.0,0.25166587]
[1760560724769,5.72400469,111170.0,111150.0,0.00050062]
[1760560724770,5.0,111160.0,111150.0,0.00050062]
[1760560724897,0.30992083,111160.0,111150.0,0.18043764]
[1760560725107,0.13,111160.0,111150.0,0.18043764]
[1760560727980,5.0,111180.0,111170.0,0.17990465]
[1760560728140,5.13,111180.0,111170.0,0.17990465]
[1760560728336,0.13,111180.0,111170.0,0.17990465]
[1760560729344,0.131,111180.0,111170.0,0.21608693]
[1760560729764,0.13,111180.0,111170.0,0.21608693]
[1760560730194,0.00058723,111200.0,111190.0,0.17987229]
[1760560730469,0.12058723,111200.0,111190.0,0.17987229]
[1760560732439,5.65018392,111220.0,111210.0,0.17983994]
[1760560732730,5.70033399,111220.0,111210.0,0.17983994]
[1760560732914,5.70150819,111220.0,111210.0,0.17983994]
[1760560733413,5.22740815,111220.0,111210.0,0.17983994]
[1760560733588,5.70250819,111220.0,111210.0,0.17983994]
[1760560734027,5.71149937,111220.0,111200.0,0.17984154]
[1760560734239,5.0,111210.0,111200.0,0.17984154]
[1760560734470,5.12,111210.0,111200.0,0.17984154]
[1760560734645,5.59410004,111210.0,111200.0,0.17984154]
[1760560734791,5.12,111210.0,111200.0,0.17984154]
[1760560737540,5.59410004,111210.0,111200.0,0.17984154]
[1760560737739,5.12,111210.0,111200.0,0.17984154]
[1760560737956,5.59410004,111210.0,111200.0,0.17984154]
[1760560738407,5.12,111210.0,111200.0,0.17984154]
[1760560738962,5.59410004,111210.0,111200.0,0.17984154]
[1760560739384,5.59468719,111210.0,111200.0,0.17984154]
[1760560739800,5.12058715,111210.0,111200.0,0.17984154]
[1760560740790,0.12058715,111210.0,111200.0,0.17984154]
[1760560741017,0.12058715,111210.0,111200.0,0.30571394]
[1760560743824,0.00058715,111210.0,111200.0,0.30571394]
[1760560744052,0.00058715,111210.0,111200.0,0.41991394]
[1760560744300,0.00058715,111210.0,111200.0,0.30571394]
[1760560744772,0.00058715,111210.0,111200.0,0.77981398]
[1760560745191,0.00058715,111210.0,111200.0,1.23401398]
[1760560746125,0.00058715,111210.0,111200.0,1.23501398]
[1760560746550,0.00015007,111220.0,111210.0,0.65393998]
[1760560746787,0.00015007,111220.0,111210.0,0.8578301]
[1760560747260,0.00015007,111220.0,111210.0,0.38373006]
[1760560747476,0.00015007,111220.0,111210.0,0.7436301]
[1760560747719,0.00015007,111220.0,111210.0,0.8578301]
[1760560747950,0.05028,111230.0,111220.0,0.51982377]
[1760560748186,0.05028,111230.0,111220.0,1.08361393]
[1760560748422,0.53438004,111230.0,111210.0,0.21602222]
[1760560748646,0.24009456,111230.0,111210.0,0.30571052]
[1760560748875,0.06028,111230.0,111220.0,0.17982377]
[1760560749094,0.2400876,111230.0,111210.0,0.30571052]
[1760560749309,0.2400876,111230.0,111210.0,0.21601804]
[1760560749584,0.47410004,111220.0,111210.0,0.17983994]
[1760560749770,5.0,111220.0,111210.0,0.17983994]
[1760560750847,0.71317802,111230.0,111210.0,0.17983994]
[1760560751052,4.878761,111220.0,111210.0,0.17983994]
[1760560752193,4.87934807,111220.0,111210.0,0.17983994]
[1760560752397,0.00058707,111220.0,111210.0,0.17983994]
[1760560752988,0.00058707,111220.0,111210.0,1.11981238]
[1760560753423,0.00058707,111220.0,111210.0,0.64571234]
[1760560753641,0.00058707,111220.0,111210.0,0.75991234]
[1760560753844,0.00058707,111220.0,111210.0,0.64571234]
[1760560754022,0.00058707,111220.0,111210.0,0.75991234]
[1760560754464,0.00058707,111220.0,111210.0,0.64571234]
[1760560754605,0.00058707,111220.0,111210.0,0.75991234]
[1760560755632,0.00058707,111220.0,111210.0,0.64571234]
[1760560755850,0.00058707,111220.0,111210.0,0.75991234]
[1760560756214,0.00058707,111220.0,111210.0,0.61053006]
[1760560756414,0.00058707,111220.0,111210.0,0.72373006]
[1760560756619,0.00058707,111220.0,111210.0,0.75991234]
[1760560756819,0.00058707,111220.0,111210.0,0.64571234]
[1760560757020,0.00058707,111220.0,111210.0,0.75991234]
[1760560757721,0.00058707,111220.0,111210.0,1.37833249]
[1760560757919,0.05,111240.0,111230.0,0.21598988]
[1760560758127,0.13,111240.0,111230.0,0.30568]
[1760560758541,0.13,111240.0,111230.0,0.41988]
[1760560758809,0.13,111240.0,111230.0,1.37830015]
[1760560759033,0.05,111240.0,111230.0,1.37830015]
[1760560759232,0.05,111240.0,111230.0,1.49250015]
[1760560759682,1e-08,111240.0,111230.0,1.49250015]
[1760560759876,1e-08,111240.0,111230.0,1.37830015]
[1760560760079,1e-08,111240.0,111230.0,1.49250015]
[1760560760295,1e-08,111250.0,111240.0,0.51979144]
[1760560760499,1e-08,111250.0,111240.0,0.64566384]
[1760560760884,1e-08,111250.0,111240.0,1.49248399]
[1760560761114,1e-08,111250.0,111240.0,1.37828399]
[1760560761322,1e-08,111250.0,111240.0,0.64566384]
[1760560761534,1e-08,111250.0,111240.0,1.49248399]
[1760560761940,1e-08,111250.0,111240.0,1.37828399]
[1760560762157,1e-08,111250.0,111240.0,1.49244399]
[1760560762564,1e-08,111250.0,111240.0,0.75982384]
[1760560762760,1e-08,111250.0,111240.0,1.49244399]
[1760560763111,1e-08,111250.0,111240.0,1.37928399]
[1760560763314,1e-08,111250.0,111240.0,1.49444399]
[1760560763514,0.05,111270.0,111260.0,0.51975912]
[1760560763708,0.05015004,111270.0,111260.0,0.60944924]
[1760560763905,1e-08,111270.0,111260.0,1.45622939]
[1760560764112,1e-08,111270.0,111260.0,1.37825167]
[1760560764311,1e-08,111270.0,111260.0,1.49241167]
[1760560764775,1e-08,111270.0,111260.0,1.37825167]
[1760560765173,1e-08,111280.0,111270.0,0.51974296]
[1760560765408,1e-08,111280.0,111270.0,1.34205323]
[1760560765854,1e-08,111280.0,111270.0,1.49239551]
[1760560766233,1e-08,111280.0,111270.0,1.49339551]
[1760560766507,1e-08,111280.0,111270.0,1.37923551]
[1760560766710,1e-08,111280.0,111270.0,0.64661536]
[1760560766919,1e-08,111280.0,111270.0,0.76077536]
[1760560767131,1e-08,111280.0,111270.0,1.49439551]
[1760560767684,1e-08,111280.0,111270.0,0.76077536]
[1760560767889,1e-08,111280.0,111270.0,0.64661536]
[1760560768088,1e-08,111280.0,111270.0,1.49339551]
[1760560768291,1e-08,111280.0,111270.0,1.49239551]
[1760560768633,1e-08,111280.0,111270.0,1.37823551]
[1760560769028,1e-08,111280.0,111270.0,1.49239551]
[1760560769265,1e-08,111290.0,111280.0,0.55590909]
[1760560769497,1e-08,111290.0,111280.0,1.37821936]
[1760560769708,1e-08,111290.0,111280.0,1.49237936]
[1760560770096,1e-08,111290.0,111280.0,1.37821936]
[1760560770312,0.0502,111310.0,111300.0,0.17969451]
[1760560770513,0.05070003,111310.0,111300.0,0.26938463]
[1760560771134,0.05070003,111310.0,111300.0,0.38350463]
[1760560771498,0.05304578,111310.0,111300.0,0.38350463]
[1760560772741,0.05304578,111310.0,111300.0,0.26938463]
[1760560772947,0.05304578,111310.0,111300.0,1.00200478]
[1760560773148,0.05304578,111310.0,111300.0,0.38350463]
[1760560773348,0.05304578,111310.0,111300.0,1.00200478]
[1760560773676,0.05304578,111310.0,111300.0,1.11612478]
[1760560773886,0.05304578,111310.0,111300.0,0.38350463]
[1760560774266,0.05304578,111310.0,111300.0,1.00200478]
[1760560774452,0.05304578,111310.0,111300.0,1.11612478]
[1760560776220,0.05304578,111310.0,111300.0,1.03818706]
[1760560776359,1e-08,111310.0,111300.0,1.49230706]
[1760560776620,1e-08,111310.0,111300.0,1.37818706]
[1760560777073,1e-08,111310.0,111300.0,1.49230706]
[1760560777300,1e-08,111310.0,111300.0,1.37818706]
[1760560777774,1e-08,111310.0,111300.0,1.37918706]
[1760560777984,1e-08,111310.0,111300.0,1.49330706]
[1760560778201,1e-08,111310.0,111300.0,1.37918706]
[1760560778405,1e-08,111310.0,111300.0,1.49326706]
[1760560778620,0.05,111320.0,111310.0,0.55586065]
[1760560778621,1e-08,111320.0,111310.0,0.55586065]
[1760560778833,1e-08,111330.0,111320.0,0.55584451]
[1760560779041,0.00014999,111330.0,111320.0,1.38648499]
[1760560779252,1e-08,111330.0,111320.0,1.38648499]
[1760560779458,1e-08,111340.0,111330.0,0.55582837]
[1760560779677,1e-08,111340.0,111330.0,1.38646885]
[1760560780109,1e-08,111350.0,111340.0,0.21581224]
[1760560780322,1e-08,111350.0,111340.0,1.38645272]
[1760560780539,1e-08,111360.0,111350.0,0.91223398]
[1760560780747,1e-08,111360.0,111350.0,1.04643659]
[1760560780953,1e-08,111360.0,111350.0,1.16051659]
[1760560781178,1e-08,111360.0,111350.0,1.38643659]
[1760560781401,0.05,111390.0,111380.0,0.17956545]
[1760560781622,0.10014989,111390.0,111380.0,0.39166578]
[1760560782034,0.10014989,111390.0,111380.0,1.01020593]
[1760560782249,0.10014989,111390.0,111380.0,0.39166578]
[1760560782526,0.05014989,111390.0,111380.0,1.01020593]
[1760560782774,0.05014989,111390.0,111380.0,1.38638821]
[1760560783189,0.05014989,111390.0,111380.0,1.50046821]
[1760560783598,0.05014989,111390.0,111380.0,1.38638821]
[1760560783831,0.17952324,111410.0,111390.0,0.18849722]
[1760560784032,1.04214339,111410.0,111390.0,0.19682743]
[1760560784237,1.04214339,111410.0,111400.0,0.17953321]
[1760560784479,1.04214339,111410.0,111400.0,0.00833021]
[1760560784480,5.22554396,111410.0,111400.0,0.00833021]
[1760560784650,6.31478679,111410.0,111400.0,0.00833021]
[1760560784893,5.40850762,111410.0,111400.0,0.18786342]
[1760560785107,6.32064486,111410.0,111400.0,0.18786342]
[1760560785522,6.32064486,111410.0,111400.0,0.00833021]
[1760560785934,5.58802471,111410.0,111400.0,0.18786342]
[1760560786145,6.32064486,111410.0,111400.0,0.18786342]
[1760560786764,5.40850762,111410.0,111400.0,0.18786342]
[1760560786979,0.51311779,111410.0,111400.0,0.18786342]
[1760560787198,0.13585807,111410.0,111400.0,0.18786342]
[1760560788033,0.13585807,111410.0,111400.0,0.31373582]
[1760560789264,0.00585807,111410.0,111400.0,1.38635597]
[1760560789470,0.00585807,111410.0,111400.0,0.65373582]
[1760560791061,0.11272147,111440.0,111430.0,0.17948487]
[1760560791327,5.14861257,111440.0,111430.0,0.18781508]
[1760560791472,5.15036873,111440.0,111430.0,0.00833021]
[1760560791675,5.88298888,111440.0,111430.0,0.00833021]
[1760560792115,5.88298888,111440.0,111430.0,0.18781508]
[1760560792116,5.89196231,111440.0,111430.0,0.18781508]
[1760560792297,5.16034216,111440.0,111430.0,0.18778441]
[1760560792495,5.03864726,111440.0,111430.0,0.18778441]
[1760560792699,5.25473288,111440.0,111430.0,0.18778441]
[1760560793444,0.17950877,111420.0,111400.0,0.26025117]
[1760560793651,4.878761,111410.0,111400.0,0.25958295]
[1760560793853,0.91271441,111420.0,111400.0,0.25958295]
[1760560794059,5.04705909,111410.0,111400.0,0.00830441]
[1760560794255,5.92631834,111410.0,111400.0,0.00830441]
[1760560795483,5.92731834,111410.0,111400.0,0.00830441]
[1760560795694,5.19469819,111410.0,111400.0,0.00830441]
[1760560795861,5.19469819,111410.0,111400.0,0.18783762]
[1760560796674,5.19469819,111410.0,111400.0,0.00830441]
[1760560797196,5.94651984,111410.0,111400.0,0.00830441]
[1760560797630,5.0343826,111410.0,111400.0,0.18783762]
[1760560797808,5.0151811,111410.0,111400.0,0.17953321]
[1760560798352,5.21391065,111410.0,111390.0,0.17954647]
[1760560798545,4.867542,111400.0,111390.0,0.17954647]
[1760560798771,0.1466391,111400.0,111390.0,0.17954647]
[1760560799585,0.1466391,111400.0,111380.0,0.18854372]
[1760560799796,0.73262015,111390.0,111380.0,0.17956545]
[1760560800002,1.03880858,111390.0,111370.0,0.18856064]
[1760560800201,4.867542,111380.0,111370.0,0.18871053]
[1760560800407,4.8841811,111380.0,111370.0,0.18871053]
[1760560800604,0.0166391,111380.0,111370.0,0.18871053]
[1760560800817,4.867542,111390.0,111380.0,0.17955115]
[1760560800952,4.88423745,111390.0,111380.0,0.17955115]
[1760560801155,5.01347036,111390.0,111380.0,0.17955115]
[1760560801371,0.02421205,111410.0,111400.0,0.17953321]
[1760560801576,5.34424302,111410.0,111400.0,0.17853321]
[1760560801775,5.36348219,111410.0,111400.0,0.17853321]
[1760560802031,4.867542,111400.0,111390.0,0.17954933]
[1760560802234,5.93563555,111400.0,111380.0,0.18752942]
[1760560802436,4.867542,111390.0,111380.0,0.18752942]
[1760560802741,5.16709133,111390.0,111380.0,0.17956545]
[1760560802910,4.867542,111380.0,111370.0,0.18871053]
[1760560803271,0.15598369,111380.0,111370.0,0.18871053]
[1760560803492,0.13672223,111380.0,111370.0,0.18871053]
[1760560803956,0.86934238,111380.0,111370.0,0.17973146]
[1760560804161,0.88960384,111380.0,111370.0,0.17973146]
[1760560804367,5.93671129,111380.0,111370.0,0.17973146]
[1760560804560,5.75714584,111380.0,111370.0,0.17973146]
[1760560805269,5.04873774,111380.0,111370.0,0.17973146]
[1760560805683,5.22830319,111380.0,111370.0,0.17973146]
[1760560805884,6.39060542,111380.0,111370.0,0.00014989]
[1760560806084,6.32495825,111380.0,111370.0,0.0085205]
[1760560806289,6.30371998,111380.0,111370.0,0.0085205]
[1760560806652,6.36845206,111380.0,111370.0,0.0085205]
[1760560807047,6.36845206,111380.0,111370.0,0.00014989]
[1760560807253,6.36845206,111380.0,111350.0,0.1796129]
[1760560807463,0.02412969,111360.0,111350.0,0.18859359]
[1760560807662,0.03598369,111360.0,111350.0,0.18859359]
[1760560808073,0.04598369,111360.0,111350.0,0.18859359]
[1760560809057,0.03598369,111360.0,111350.0,0.18859359]
[1760560809661,0.01772223,111360.0,111350.0,0.18859359]
[1760560809862,0.1570227,111360.0,111340.0,0.17962144]
[1760560810053,0.34,111350.0,111340.0,0.17962144]
[1760560810252,0.3860227,111350.0,111340.0,0.17962144]
[1760560810944,4.867542,111340.0,111330.0,0.18855197]
[1760560811128,0.1460227,111340.0,111330.0,0.18855197]
[1760560811387,0.12676124,111340.0,111330.0,0.18855197]
[1760560812209,0.01676124,111340.0,111330.0,0.18855197]
[1760560812412,5.22680346,111350.0,111340.0,0.17962996]
[1760560812639,5.36354688,111350.0,111340.0,0.17962996]
[1760560813518,5.54316071,111350.0,111340.0,0.17962996]
[1760560813685,5.5672904,111350.0,111340.0,0.17962996]
[1760560813942,4.867542,111340.0,111330.0,0.18855197]
[1760560814134,0.03600488,111340.0,111330.0,0.18855197]
[1760560814340,5.22682308,111350.0,111340.0,0.17962996]
[1760560814542,5.36355752,111350.0,111340.0,0.17962996]
[1760560814698,0.01928108,111350.0,111340.0,0.17962996]
[1760560814904,0.55308916,111370.0,111340.0,0.17962996]
[1760560814905,5.29210476,111370.0,111360.0,0.1795977]
[1760560815102,5.42000839,111370.0,111360.0,0.1795977]
[1760560815302,5.38783547,111370.0,111360.0,0.1795977]
[1760560815701,5.40101074,111370.0,111360.0,0.1795977]
[1760560815901,5.36370578,111370.0,111360.0,0.1795977]
[1760560816274,5.36470578,111370.0,111360.0,0.1795977]
[1760560816607,5.36370578,111370.0,111360.0,0.1795977]
[1760560818033,0.49616378,111370.0,111360.0,0.1795977]
[1760560818249,0.15616378,111370.0,111360.0,0.1795977]
[1760560818453,0.12014975,111370.0,111360.0,0.1795977]
[1760560819280,0.13688465,111370.0,111360.0,0.1795977]
[1760560819694,0.12014975,111370.0,111360.0,0.1795977]
[1760560823457,0.12014975,111370.0,111360.0,0.3054701]
[1760560823658,0.01927291,111390.0,111380.0,0.17956545]
[1760560823864,0.12676957,111390.0,111380.0,0.17956545]
[1760560827932,0.11,111390.0,111380.0,0.17956545]
[1760560828949,0.105,111390.0,111380.0,0.17956545]
[1760560831909,0.105,111390.0,111380.0,0.77809471]
[1760560832141,0.105,111390.0,111380.0,0.30543785]
[1760560833190,1.18207498,111420.0,111380.0,0.30543785]
[1760560833191,5.25518094,111420.0,111410.0,0.17951709]
[1760560833402,5.01975336,111420.0,111410.0,0.17951709]
[1760560833641,0.08014989,111420.0,111410.0,0.17951709]
[1760560834078,0.11719895,111420.0,111410.0,0.17951709]
[1760560834494,0.11819895,111420.0,111410.0,0.17951709]
[1760560834975,0.11719895,111420.0,111410.0,0.17951709]
[1760560835403,0.08014989,111420.0,111410.0,0.17951709]
[1760560837995,5.36325079,111450.0,111440.0,0.17946877]
[1760560838200,5.42375024,111450.0,111440.0,0.17946877]
[1760560838411,5.42375024,111450.0,111440.0,0.77799803]
[1760560838412,0.05599298,111450.0,111440.0,0.77799803]
[1760560838626,0.05599298,111450.0,111440.0,1.23203803]
[1760560838847,0.00049945,111450.0,111440.0,1.23203803]
[1760560839055,1e-08,111450.0,111440.0,1.11799803]
[1760560839289,1e-08,111450.0,111440.0,0.64534117]
[1760560839505,1e-08,111450.0,111440.0,1.23199803]
[1760560839915,1e-08,111450.0,111440.0,1.11899803]
[1760560840122,1e-08,111450.0,111440.0,1.70565489]
[1760560840331,1e-08,111450.0,111440.0,1.23299803]
[1760560840558,1e-08,111450.0,111440.0,1.11899803]
[1760560840764,1e-08,111450.0,111440.0,1.70665489]
[1760560841175,1e-08,111450.0,111440.0,1.59265489]
[1760560841381,1e-08,111450.0,111440.0,1.23395803]
[1760560842018,1e-08,111450.0,111440.0,1.11999803]
[1760560842223,1e-08,111450.0,111440.0,1.23395803]
[1760560842672,1e-08,111450.0,111440.0,1.11999803]
[1760560842884,1e-08,111450.0,111440.0,1.23395803]
[1760560843316,1e-08,111450.0,111440.0,1.11999803]
[1760560843511,1e-08,111450.0,111440.0,1.23395803]
[1760560843932,1e-08,111450.0,111440.0,0.76130117]
[1760560845807,1e-08,111450.0,111440.0,0.64734117]
[1760560845963,1e-08,111450.0,111440.0,0.76130117]
[1760560846528,1e-08,111450.0,111440.0,0.64734117]
[1760560846746,1e-08,111460.0,111450.0,0.21563494]
[1760560846950,0.00014975,111460.0,111450.0,0.30532506]
[1760560847590,0.00014975,111460.0,111450.0,0.77798192]
[1760560847808,0.00014975,111460.0,111450.0,0.77898192]
[1760560848047,0.00014975,111460.0,111450.0,0.77998192]
[1760560848228,0.00014975,111460.0,111450.0,0.30732506]
[1760560848428,0.00014975,111460.0,111450.0,0.77998192]
[1760560849221,1e-08,111460.0,111450.0,0.77998192]
[1760560849742,1e-08,111460.0,111450.0,0.89390192]
[1760560850310,1e-08,111460.0,111450.0,1.23390192]
[1760560850836,1e-08,111460.0,111450.0,1.23600192]
[1760560851037,1e-08,111460.0,111450.0,1.12208192]
[1760560851277,1e-08,111460.0,111450.0,1.23500192]
[1760560851480,1e-08,111460.0,111450.0,0.76334506]
[1760560851722,1e-08,111460.0,111450.0,1.12208192]
[1760560851977,1e-08,111460.0,111450.0,1.23500192]
[1760560852250,1e-08,111460.0,111450.0,1.23600192]
[1760560852463,0.00058519,111460.0,111450.0,0.64942506]
[1760560852688,0.00058519,111460.0,111450.0,0.30942506]
[1760560852899,0.00058519,111460.0,111450.0,0.78208192]
[1760560853529,0.00058519,111460.0,111450.0,0.78108192]
[1760560853737,0.00058519,111460.0,111450.0,0.78008192]
[1760560855448,0.00058519,111460.0,111450.0,0.27124278]
[1760560855664,0.01058519,111460.0,111450.0,0.27124278]
[1760560855875,0.01058519,111460.0,111450.0,0.30742506]
[1760560856088,5.41084192,111470.0,111460.0,0.17943656]
[1760560856295,5.45019886,111470.0,111460.0,0.17943656]
[1760560856508,5.62961933,111470.0,111460.0,0.17943656]
[1760560857133,5.62961933,111470.0,111450.0,0.27124278]
[1760560857335,4.867542,111460.0,111450.0,0.27124278]
[1760560858459,4.867542,111460.0,111450.0,0.18155266]
[1760560858682,0.17943656,111460.0,111450.0,0.18155266]
[1760560858904,0.18943656,111460.0,111450.0,0.18155266]
[1760560860232,0.01,111460.0,111450.0,0.18155266]
[1760560860670,0.18943656,111460.0,111450.0,0.18155266]
[1760560860892,0.01,111460.0,111450.0,0.18155266]
[1760560865465,5.25148857,111470.0,111460.0,0.17943656]
[1760560865678,5.32148857,111470.0,111460.0,0.17943656]
[1760560865906,5.35366149,111470.0,111460.0,0.17943656]
[1760560866752,0.38394657,111470.0,111460.0,0.17943656]
[1760560866957,0.38494657,111470.0,111460.0,0.17943656]
[1760560867429,0.02081688,111470.0,111460.0,0.26912668]
[1760560869013,0.01981688,111470.0,111460.0,0.26912668]
[1760560869706,0.08237292,111490.0,111470.0,0.28735485]
[1760560869924,4.87421059,111500.0,111490.0,0.55557056]
[1760560870143,4.87436031,111500.0,111490.0,1.11791754]
[1760560870357,4.37243855,111500.0,111490.0,1.11791754]
[1760560870564,4.00967955,111500.0,111490.0,1.11791754]
[1760560870837,3.84633783,111500.0,111490.0,1.23183754]
[1760560871049,3.60686151,111500.0,111490.0,1.26851238]
[1760560871245,3.44462465,111500.0,111490.0,1.26851238]
[1760560871562,3.17114776,111500.0,111490.0,1.26851238]
[1760560871766,3.05911463,111500.0,111490.0,1.26851238]
[1760560872087,3.02053112,111500.0,111490.0,1.27051238]
[1760560872289,2.54016388,111500.0,111490.0,1.27051238]
[1760560872489,2.43810698,111500.0,111490.0,1.27147238]
[1760560872692,2.27946248,111500.0,111490.0,1.15759238]
[1760560872874,2.14540062,111500.0,111490.0,1.27047238]
[1760560873169,2.14540062,111500.0,111490.0,1.27147238]
[1760560873401,1.70234638,111500.0,111490.0,1.27147238]
[1760560874060,1.27646989,111500.0,111490.0,1.23479754]
[1760560874260,1.2265724,111500.0,111490.0,1.23479754]
[1760560874571,0.73256543,111500.0,111490.0,1.23479754]
[1760560874795,0.49942587,111500.0,111490.0,1.23479754]
[1760560875405,0.50118061,111500.0,111490.0,1.37670933]
[1760560875618,0.05,111510.0,111500.0,0.21555447]
[1760560875823,1e-08,111510.0,111500.0,1.03369324]
[1760560876024,0.00058479,111510.0,111500.0,1.14761324]
[1760560876869,0.00058479,111510.0,111500.0,1.03469324]
[1760560877092,0.00058479,111510.0,111500.0,1.03669324]
[1760560877297,0.00058479,111510.0,111500.0,1.14961324]
[1760560877708,0.00058479,111510.0,111500.0,1.15161324]
[1760560878163,0.00058479,111510.0,111500.0,1.14961324]
[1760560878362,0.00058479,111510.0,111500.0,1.14761324]
[1760560878580,0.00058479,111510.0,111500.0,1.03569324]
[1760560878755,0.00058479,111510.0,111500.0,1.15057324]
[1760560880573,1e-08,111510.0,111500.0,1.15057324]
[1760560881187,1e-08,111510.0,111500.0,1.15053324]
[1760560881354,1e-08,111510.0,111500.0,1.03669324]
[1760560881912,1e-08,111510.0,111500.0,1.15057324]
[1760560882120,1e-08,111510.0,111500.0,1.03669324]
[1760560882373,1e-08,111510.0,111500.0,1.15053324]
[1760560882574,1e-08,111510.0,111500.0,1.03669324]
[1760560882774,1e-08,111510.0,111500.0,1.15057324]
[1760560883219,1e-08,111510.0,111500.0,1.03669324]
[1760560883602,1e-08,111510.0,111500.0,1.15053324]
[1760560884011,1e-08,111510.0,111500.0,1.03669324]
[1760560884216,1e-08,111510.0,111500.0,1.15053324]
[1760560884594,1e-08,111510.0,111500.0,1.03669324]
[1760560885012,1e-08,111510.0,111500.0,1.15053324]
[1760560885209,1e-08,111510.0,111500.0,1.03669324]
[1760560885376,1e-08,111510.0,111500.0,1.15053324]
[1760560885779,1e-08,111510.0,111500.0,1.03669324]
[1760560885980,1e-08,111510.0,111500.0,1.15053324]
[1760560886185,1e-08,111510.0,111500.0,1.03669324]
[1760560886468,1e-08,111510.0,111500.0,1.15053324]
[1760560886674,1e-08,111510.0,111500.0,1.11435096]
[1760560886893,1e-08,111510.0,111500.0,0.27206231]
[1760560887100,1e-08,111510.0,111500.0,0.27006231]
[1760560887525,0.18935612,111510.0,111500.0,0.001]
[1760560887728,6.21502885,111510.0,111500.0,0.002]
[1760560888135,6.21502885,111510.0,111500.0,0.001]
[1760560888716,5.04694637,111480.0,111470.0,0.0717521]
[1760560888919,0.17940079,111490.0,111470.0,0.07190182]
[1760560889093,5.04694637,111480.0,111470.0,0.0084557]
[1760560889278,4.867542,111480.0,111470.0,0.0084557]
[1760560889765,4.867542,111480.0,111470.0,0.18787617]
[1760560889896,0.34,111490.0,111470.0,0.27823133]
[1760560890110,0.52939664,111490.0,111470.0,0.00014972]
[1760560890311,0.17940437,111480.0,111470.0,0.00014972]
[1760560890510,0.55585496,111490.0,111470.0,0.00014972]
[1760560890720,5.04694637,111480.0,111470.0,0.00014972]
[1760560890922,0.17940437,111480.0,111470.0,0.00014972]
[1760560891123,4.867542,111480.0,111470.0,0.00014972]
[1760560891322,5.04694637,111480.0,111470.0,0.00014972]
[1760560891544,5.15694637,111480.0,111470.0,0.00845803]
[1760560892303,4.977542,111480.0,111470.0,0.00845803]
[1760560892518,5.15694637,111480.0,111470.0,0.00845803]
[1760560892746,4.977542,111480.0,111470.0,0.00845803]
[1760560892965,5.15694637,111480.0,111470.0,0.00845803]
[1760560893600,4.977542,111480.0,111470.0,0.00845803]
[1760560894139,5.15694637,111480.0,111470.0,0.00846292]
[1760560894588,5.15694637,111480.0,111470.0,0.00014972]
[1760560894736,5.15694637,111480.0,111470.0,0.0084653]
[1760560894928,5.15694637,111480.0,111470.0,0.00014972]
[1760560895137,4.977542,111480.0,111470.0,0.00014972]
[1760560895433,5.15694637,111480.0,111470.0,0.00014972]
[1760560895683,4.977542,111480.0,111470.0,0.00014972]
[1760560895851,5.15694637,111480.0,111470.0,0.00014972]
[1760560896056,5.15694637,111480.0,111470.0,0.0084711]
[1760560896289,4.977542,111480.0,111470.0,0.00014972]
[1760560897716,4.977542,111480.0,111470.0,0.00847804]
[1760560898388,5.49694637,111480.0,111470.0,0.00847804]
[1760560898598,5.53646631,111480.0,111470.0,0.00847804]
[1760560898775,6.26491496,111480.0,111470.0,0.00847804]
[1760560899181,6.22539502,111480.0,111470.0,0.00847804]
[1760560899592,6.22539502,111480.0,111470.0,0.00014972]
[1760560899729,5.49794637,111480.0,111470.0,0.00014972]
[1760560899936,5.318542,111480.0,111470.0,0.00014972]
[1760560900156,5.49794637,111480.0,111470.0,0.00014972]
[1760560900414,5.318542,111480.0,111470.0,0.00014972]
[1760560900819,5.49894637,111480.0,111470.0,0.00014972]
[1760560900953,5.56031681,111480.0,111470.0,0.00014972]
[1760560901977,6.28876546,111480.0,111470.0,0.00014972]
[1760560903050,6.28976546,111480.0,111470.0,0.00014972]
[1760560903579,6.30896203,111480.0,111470.0,0.00014972]
[1760560903816,6.30996203,111480.0,111470.0,0.00014972]
[1760560904015,6.30896203,111480.0,111470.0,0.00014972]
[1760560904216,6.30996203,111480.0,111470.0,0.00014972]
[1760560905095,6.30896203,111480.0,111470.0,0.00014972]
[1760560905651,6.30996203,111480.0,111470.0,0.00014972]